Cogmind - Beta 16 @@@ ROGUE MODE // 2026.02.02 @ 21:14:46 Player: Krysmphoenix Result: Destroyed by S-10 Pest with Light Assault Rifle Performance ------------- Evolutions (1) 500 Regions Visited (2) 400 Robots Destroyed (39) 195 Value Destroyed (951) 951 Prototype IDs (5) 100 Alien Tech Used (0) 0 Bonus (0) 0 TOTAL SCORE: 2146 Bonus ------- None Cogmind --------- Core Integrity 0/400 Matter 300/300 Energy 100/100 System Corruption 0% Temperature Cool (0) Movement Core (50) Location -9/Materials Parts ------- > --- POWER (1) -------- (None) > --- PROPULSION (4) --- (None) > --- UTILITY (2) ------ Visual Processing Unit Signal Interpreter > --- WEAPON (2) ------- (None) > --- INVENTORY (5) ---- Shield Generator Enhanced Autogun Datajack Hammer Peak State ------------ > --- POWER ------------ Light Ion Engine > --- PROPULSION ------- Hover Unit Hover Unit > --- UTILITY ---------- Visual Processing Unit > --- WEAPON ----------- Improved Assault Rifle Enhanced Autogun > --- INVENTORY -------- Light Assault Rifle Datajack Hammer [Rating: 12] Favorites ----------- Power Light Ion Engine Engine Light Ion Engine Propulsion VTOL Module Wheel Wheel Hover Unit Hover Unit Flight Unit VTOL Module Utility Visual Processing Unit Device ECM Suite Storage Medium Matter Pod Processor Visual Processing Unit Weapon Small Laser Energy Gun Small Laser Ballistic Gun Light Assault Rifle Impact Weapon Hammer Build | -11 -10 -9 ------- Run | Yrd Mat Mat Slots Evolved 2 | . . 2 Power . | . . . Propulsion 2 | . . 2 Utility . | . . . Weapon . | . . . Parts Attached 38 | 10 15 13 Power 5 | 1 3 1 Engine 5 | 1 3 1 Core . | . . . Reactor . | . . . Propulsion 13 | 3 6 4 Treads . | . . . Leg . | . . . Wheel 3 | 3 . . Hover 2 | . . 2 Flight 8 | . 6 2 Utility 11 | 4 3 4 Device 4 | 1 1 2 Storage 3 | 3 . . Processor 4 | . 2 2 Hackware . | . . . Protection . | . . . Artifact . | . . . Weapon 9 | 2 3 4 Energy Gun 3 | 2 1 . Energy Cannon . | . . . Ballistic Gun 5 | . 2 3 Ballistic Cannon . | . . . Launcher . | . . . Special Weapon . | . . . Impact Weapon 1 | . . 1 Slashing Weapon . | . . . Piercing Weapon . | . . . Special Melee Weapon . | . . . Unidentified Prototypes 3 | . 1 2 Parts Lost 15 | . 5 10 Power 3 | . 1 2 Propulsion 6 | . 2 4 Utility 2 | . . 2 Weapon 4 | . 2 2 Highest Loss Streak 3 | . 3 3 To Critical Strikes . | . . . Average Backups 2 | 1 2 3 Power . | . . . Propulsion . | . . . Utility 1 | . 1 . Weapon . | . . 2 Tool/Special . | . . . Unused Backups 9 | 4 2 3 Power 1 | 1 . . Propulsion 5 | 3 2 . Utility 2 | . . 2 Weapon . | . . . Tool/Special 1 | . . 1 Average Slot Usage (%) 73 | . 93 49 Engine 9 | . 13 4 Wheel 4 | . 8 . Hover 2 | . . 4 Flight 13 | . 17 8 Device 11 | . 15 6 Processor 8 | . 8 9 Energy Gun 10 | . 18 . Ballistic Gun 10 | . 8 13 Peak Build Rating 12 | 9 10 12 Average Rating 8 | 5 8 8 On Entrance 5 | . 9 8 Avg Prop Armor Cover (%) 18 | 18 . . Naked Turns . | . . . Heaviest Build 16 | 16 11 9 Greatest Support 26 | 26 20 12 Greatest Overweight (x) 1 | 1 1 1 Average Overweight (x) . | . . . Largest Inventory Capacity 8 | 8 5 5 Average Capacity 5 | 6 5 5 Most Carried 5 | 5 5 5 Average Carried 2 | 1 2 3 Final Capacity 5 | 5 5 5 Final Carried 4 | . 2 4 Class Distribution -------------------- 60% | Mutant 23% | Sprinter 16% | Scavenger-Mutant Dominant Class ---------------- Sprinter | -10/Materials Mutant | -9/Materials Resources | -11 -10 -9 ----------- Run | Yrd Mat Mat Matter Collected 1063 | 325 250 488 Remotely . | . . . Salvage Created 1324 | 124 545 655 Parts 72 | 9 28 35 Haulers Intercepted . | . . . Recyclers Shooed 3 | . 1 2 Parts Field Recycled . | . . . Retrieved Matter . | . . . Parts Self-Destructed . | . . . Prevented . | . . . Parts Restored . | . . . Kills | -11 -10 -9 ------- Run | Yrd Mat Mat Combat Hostiles Destroyed 29 | . 14 15 Melee 2 | . . 2 Guns 25 | . 14 11 Classes Destroyed 9 | 3 3 3 Worker 1 | 1 . . Tunneler 2 | 2 . . Recycler 2 | 1 1 . Operator 1 | . . 1 Watcher 4 | . 2 2 Swarmer 9 | . 6 3 Grunt 16 | . 8 8 Brawler 1 | . . 1 Sentry 3 | . . 3 Best Kill Streak 5 | 2 5 4 Combat Bots Only 5 | . 5 4 Max Kills in Single Turn 1 | 1 1 1 Gunslinging . | . . . Exploded . | . . . Melee 1 | . . 1 Uniques/NPCs Destroyed . | . . . Combat | -11 -10 -9 -------- Run | Yrd Mat Mat Hostile Shots Fired 227 | . 88 139 Missed 80 | . 25 55 Hits 147 | . 63 84 Projectile 147 | . 63 84 Critical Strikes 5 | . 2 3 Damage Taken 1587 | . 641 946 Core 629 | . 226 403 Absorbed by Shields . | . . . Regen/Repaired (Parts) 82 | . 58 24 Core Remaining (%) 54 | 100 9 . Volleys Fired 119 | 6 59 54 Largest 2 | 2 2 2 Hottest 80 | 80 80 48 Shots Fired 216 | 12 104 100 Gun 216 | 12 104 100 Cannon . | . . . Launcher . | . . . Special . | . . . Kinetic 132 | . 32 100 Thermal 64 | 6 58 . Explosive . | . . . Electromagnetic 20 | 6 14 . Robot Hit Streak 10 | 10 9 9 Robot Miss Streak 7 | . 6 7 Penetration Max . | . . . Secondary Targets 7 | . 4 3 Max Gunslinging Chain 1 | . 1 1 Shots Hit Robots 151 | 10 66 75 Core Hits 60 | 5 31 24 Critical Kills 1 | . . 1 Critical Parts Destroyed 2 | . . 2 Critical Strikes 3 | . . 3 Destroy 1 | . . 1 Smash 2 | . . 2 Melee Attacks 17 | . . 17 Impact 17 | . . 17 Slashing . | . . . Piercing . | . . . Sneak Attacks . | . . . Combat Hostiles . | . . . Follow-up Attacks . | . . . Damage Inflicted 2090 | 119 739 1232 Guns 1625 | 119 681 825 Cannons . | . . . Explosions 58 | . 58 . Melee 407 | . . 407 Ramming . | . . . Kinetic 1034 | . 209 825 Thermal 482 | 45 437 . Explosive . | . . . Electromagnetic 167 | 74 93 . Impact 407 | . . 407 Slashing . | . . . Piercing . | . . . Highest Corruption . | . . . Average Corruption . | . . . Corruption Purged . | . . . Corruption Blocked . | . . . Overload Shots . | . . . Overflow Damage 54 | . . 54 Projectiles . | . . . Explosions . | . . . Melee 54 | . . 54 Knockbacks . | . . . Impact . | . . . Kinetic . | . . . Secondary . | . . . Self-Inflicted Damage . | . . . Shots . | . . . Rammed . | . . . Targets Rammed . | . . . Kicked . | . . . Crushed . | . . . Highest Temperature 260 | 72 260 24 Average Temperature 64 | 30 92 7 Received Heat Transfer 600 | . 240 360 Siege Activations . | . . . Martial Activations . | . . . Shielding Activations . | . . . Robots Disrupted . | . . . Combat Hostiles . | . . . Robots Corrupted 2 | . . 2 Combat Hostiles 2 | . . 2 Parts Fried 4 | 1 . 3 Impact Corruptions 4 | . . 4 Robots Melted . | . . . Combat Hostiles . | . . . Parts Melted 2 | . 2 . Heat Transferred 1075 | 100 975 . Parts Sabotaged . | . . . Parts Stolen . | . . . Parts Stripped . | . . . Power Chain Reactions 1 | . 1 . Alert | -11 -10 -9 ------- Run | Yrd Mat Mat Maximum Alert Level . | . . . Low Security (%) 100 | 100 100 100 Level 1 . | . . . Level 2 . | . . . Level 3 . | . . . Level 4 . | . . . Level 5 . | . . . High Security . | . . . Max Security . | . . . Peak Influence 155 | 10 115 155 Initial . | . . . Average 32 | 1 25 52 Influence Increases 946 | 20 439 487 Destroy 0b10 Robot/C 580 | . 280 300 Destroy 0b10 Robot/NC 50 | 20 15 15 Destroy Leader 138 | . 64 74 Successful Hack 23 | . 17 6 Destroy Structure 5 | . 3 2 Partial Spotted 60 | . 45 15 Lose Combat Pursuer 90 | . 15 75 Influence Decreases 804 | 20 439 345 Time Decay 507 | 20 242 245 Lost Part 150 | . 50 100 Purge Threat 147 | . 147 . Squads Dispatched 8 | . 3 5 Investigation 5 | . 2 3 Extermination . | . . . Reinforcement 3 | . 1 2 Assault . | . . . Garrison . | . . . Intercept . | . . . Searches Triggered . | . . . Construction Impeded . | . . . Haulers Reinforced . | . . . Active Scanning Responses . | . . . Cargo Convoy Interrupts . | . . . Stealth | -11 -10 -9 --------- Run | Yrd Mat Mat Distress Signals 4 | . . 4 Communications Jammed . | . . . Distress Signals . | . . . Times Spotted 68 | . 29 39 Peak Tracking Total 15 | . 6 15 Tactical Retreats 6 | . 5 1 ECM-based Alert Blocks 10 | . 10 . Traps | -11 -10 -9 ------- Run | Yrd Mat Mat Traps Triggered 1 | . . 1 Indirectly . | . . . Trap Hack Attempts . | . . . Triggered . | . . . Disarmed . | . . . Reprogrammed . | . . . Reused . | . . . Traps Extracted . | . . . Installed . | . . . Triggered . | . . . Machines | -11 -10 -9 ---------- Run | Yrd Mat Mat Machines Disabled . | . . . Max in Single Turn . | . . . Machines Repaired . | . . . Machines Dismantled . | . . . Machines Sabotaged . | . . . Overloaded Fab Kills . | . . . Hacking | -11 -10 -9 --------- Run | Yrd Mat Mat Machines Accessed 14 | . 8 6 Terminals 8 | . 6 2 Fabricators . | . . . Repair Stations 2 | . 1 1 Recycling Units 2 | . 1 1 Scanalyzers 2 | . . 2 Garrison Access . | . . . Total Hacks 61 | . 35 26 Successful 44 | . 24 20 Failed 17 | . 11 6 Catastrophic 1 | . 1 . Database Lockouts . | . . . Manual . | . . . Terminals 30 | . 22 8 Fabricators . | . . . Repair Stations 15 | . 9 6 Recycling Units 8 | . 4 4 Scanalyzers 8 | . . 8 Garrison Access . | . . . Terminal Hacks 24 | . 17 7 Record 15 | . 9 6 Prototype ID Bank 1 | . 1 . Alert Level 3 | . 2 1 Unreport Threat 2 | . 2 . Maintenance Status 1 | . 1 . Investigation Status 1 | . 1 . Zone Layout 1 | . 1 . Fabricator Hacks . | . . . Repair Station Hacks 8 | . 4 4 Scan Component 4 | . 2 2 Repair 4 | . 2 2 Recycling Unit Hacks 5 | . 3 2 Recycle Component 1 | . 1 . Report Inventory 2 | . 1 1 Retrieve Matter 1 | . 1 . Retrieve Components 1 | . . 1 Scanalyzer 7 | . . 7 Insert Component 3 | . . 3 Analyze 3 | . . 3 Retrieve Study 1 | . . 1 Garrison Access Hacks . | . . . Unauthorized Hacks . | . . . Terminals . | . . . Fabricators . | . . . Repair Stations . | . . . Recycling Units . | . . . Scanalyzers . | . . . Garrison Access . | . . . Data Cores Recovered 1 | . . 1 Used . | . . . Hacking Detections 11 | . 7 4 Full Trace Events 7 | . 5 2 Feedback Events . | . . . Feedback Blocked . | . . . Robot Schematics Acquired . | . . . Robots Built . | . . . Authchips . | . . . Time . | . . . Total Robot Build Rating . | . . . Part Schematics Acquired 2 | . . 2 Parts Built . | . . . Authchips . | . . . Time . | . . . Total Part Build Rating . | . . . Part Studies Acquired 1 | . . 1 Parts Repaired 4 | . 2 2 Time 120 | . 58 62 Parts Recycled 1 | . 1 . Recycled Matter . | . . . Retrieved Matter . | . . . Retrieved Components 3 | . . 3 Parts Scanalyzed 2 | . . 2 Part Schematics Acquired 2 | . . 2 Parts Damaged . | . . . Bothacking | -11 -10 -9 ------------ Run | Yrd Mat Mat Used RIF Installer . | . . . Robots Hacked . | . . . Non-combat . | . . . Combat . | . . . Robot Hacks Applied . | . . . Relay Couplers Released . | . . . Fabnet Peak Effective % . | . . . Robots Rewired . | . . . Allies Hacked . | . . . Hacks Repelled . | . . . Allies | -11 -10 -9 -------- Run | Yrd Mat Mat Total Allies . | . . . Largest Group . | . . . Highest-Rated Group . | . . . Highest-Rated Ally . | . . . Total Orders . | . . . Ally Attacks . | . . . Total Damage . | . . . Kills . | . . . Allies Corrupted . | . . . Allies Melted . | . . . Intel | -11 -10 -9 ------- Run | Yrd Mat Mat Active Infowar (turns) 1236 | 55 844 337 Optics 731 | . 394 337 Terrain 246 | 55 191 . ECM 645 | . 645 . Robot Analysis Total . | . . . Derelict Logs Recovered . | . . . Drone Launches . | . . . Drone Recoveries . | . . . Exploration | -11 -10 -9 ------------- Run | Yrd Mat Mat Turns Passed 1747 | 228 856 663 Spaces Moved 1810 | 202 899 709 Core 38 | 27 . 11 Treads . | . . . Legs . | . . . Wheels 378 | 175 203 . Hover 187 | . . 187 Flight 1207 | . 696 511 Fastest Speed 32 | 50 32 37 Average Speed 49 | 81 44 47 Slowest Speed 120 | 100 115 120 Overloaded Moves . | . . . Propulsion Burnouts . | . . . Robots Hopped 13 | . 8 5 Potential Cave-ins . | . . . Cave-ins Triggered . | . . . Exploration Rate (%) 61 | 10 99 75 Regions Visited 2 Branch Regions . Pre-discovered Areas . | . . . Known Exits Taken 1 | . 1 . Unknown Exits Taken 1 | 1 . . Scrap Searched . | . . . Spaces Dug . | . . . Terrain Destroyed 3 | . 3 . Melee . | . . . Projectile . | . . . AOE 3 | . 3 . Terrain Rammed . | . . . Walls Destroyed . | . . . Machines Disabled . | . . . Actions | -11 -10 -9 --------- Run | Yrd Mat Mat Total 2433 | 256 1251 926 Wait 365 | 12 251 102 Move 1783 | 201 883 699 Hop 12 | . 7 5 Pick Up 52 | 15 19 18 Fast Attach . | . . . Attach 33 | 9 11 13 Detach 10 | 2 3 5 Swap 18 | 3 9 6 Drop 24 | 8 9 7 Fire 119 | 6 59 54 Melee 17 | . . 17 Ram . | . . . Kick . | . . . Crush . | . . . Escape Stasis . | . . . Rewire . | . . . Trap . | . . . Miscellaneous . | . . . Route ------- -11/Scrapyard -10/Materials (discovered 5 exits: *Mat x3 / [*Min x2]) -9/Materials (discovered 4 exits: [*Mat x2] / *Min / [*Sto]) History --------- Turn | Location | Event 13 | -11/Scrapyard | Discovered new exit (range 16) 229 | -11/Scrapyard | Entered Materials 310 | -10/Materials | Build established: Mutant 542 | -10/Materials | Discovered new exit (range 15) 575 | -10/Materials | Discovered new exit (range 15) 581 | -10/Materials | Discovered new exit (range 14) 587 | -10/Materials | Discovered new exit (range 16) 826 | -10/Materials | Core integrity fell below 50% 867 | -10/Materials | Repaired Sml. Laser 901 | -10/Materials | Repaired VTOL Module 953 | -10/Materials | Discovered new exit (range 15) 1025 | -10/Materials | Core integrity fell below 20% 1054 | -10/Materials | Lost 3 parts (1p1n1w) 1085 | -10/Materials | Identified exit to Materials 1085 | -10/Materials | Entered another Materials area 1085 | -9/Materials | Evolved 2 slots: Propulsion x2 1306 | -9/Materials | Repaired Flight Unit 1368 | -9/Materials | Repaired Corrupted Hover Unit 1409 | -9/Materials | Discovered new exit (range 14) 1415 | -9/Materials | Lost 3 parts (1n2u) 1445 | -9/Materials | Discovered new exit (range 15) 1456 | -9/Materials | Discovered new exit (range 13) 1634 | -9/Materials | Core integrity fell below 50% 1707 | -9/Materials | Discovered new exit (range 17) 1741 | -9/Materials | Identified exit to Mines 1746 | -9/Materials | Core integrity fell below 20% 1748 | -9/Materials | Destroyed by S-10 Pest with Light Assault Rifle Last Messages --------------- Current Alert Level: Low Security 01707_ EXIT=FOUND 01709_ Triggered Alarm Trap. 01709_ An alarm sounds. 01709_ ALERT: Alarm triggered, dispatching investigation squad. 01713_ O-16 Technician: "IFF HANDSHAKE FAILED. SECURING TERMINAL." 01723_ ALERT: Hostiles spotted, dispatching reinforcements to Terminal M008. 01724_ O-16 Technician: "IFF HANDSHAKE FAILED. SECURING TERMINAL." 01727_ Acquired Shield Generator. 01731_ ALERT: Hostiles spotted, dispatching reinforcements to Terminal M003. 01736_ W-16 Scout sends out distress signal. 01741_ EXIT=IDENTIFIED: MINES 01744_ Flight Unit+ destroyed. 01746_ Lgt. Assault Rifle destroyed. 01747_ S-10 Pest destroyed. Map ----- +----------------------------------------------------+ | #??# "" # # #????????????# #???# | | """ #??# ""S + + """ #?????????#??# #???# | | """ #??# "" # # """ #????????? ?# #???# | | """ #??# # #??""" #?????????? # #???# | | #??# # #????###??????????? + #???# | | #######??######## #???? #????????????# #???# | | ????????????????# #??"" #????????????# ##### | | ????????????????# # """ #????????????# | | ????????????????# / #?????????#### | | ????????????????# # [ + ? | | ????????????????# #?? #####??????### | | ????????????????# #????###????????????# ### | | ???????########## #???????##########? ??## | | ???????# # #???????# #?! ????# | | ???????# # #???????#] """ #???!??????# | | ???????# # #???????# [ """ #??????????# | | ???????# # #???????# """ #??????????# | | ???????# # #???????# #??????????# | | ???????# # #???????# """ #?????????## | | ???????# # #???????# """ #?????????# | | ???????# # #???????# """ #?????????# | | ######## # ######### #?????????# | | # ######+#### # w ##+#######?????????# | | a a s ############### | | g %gss g + [ ### | | == """ """ [s @ ##### #?? | | # = """ "T" ##s ## #???# """ """ #?? | | # """ ## "|"|" ## #???# """ """ #?? | | # ##""|"|""## #???# """ """ #?? | | # ########### #???# #?? | | # #?????????# #???# #?? | | # ########+#### #?????????# #???# #?? | | # #????# # #?????????# ########+####+### | | # #????# # #?????????+ | | # #????# """ # #?????????# | | # #????# """ # #?????????# !!! """ | | # #????# """ # ??????????######+#### ! """ | | # #????# # ????????????????????# !! """ | | # #????########+????????????????????# | | # ######## ????????????????????# | | # # ## ????????????????????# ### ### | | # # # """?????????????????????# #?# #?# | | # # """?????????????????????# #?# #?? | | # % # # ""??????????????????????# #?# #?? | | # ## # ??????????????????????+ #?#+#?? | | # ##########+####???????????????"? # #?????? | | = #######???#????"" # #?????? | | [%[ +????" # #?????? | | %%= #########? ????? + #?????? | | #+######+####### #????????? ?????? ""# ??????? | +----------------------------------------------------+ Best States ------------- Heat Dissipation 28 Energy Generation 10 Energy Capacity 250 Matter Stores 336 Matter Capacity 400 Sight Range 18 Terrain Scan Range 16 Terrain Scan Density 10 ECM Strength 1 Evasion (%) 70 Item Schematics ----------------- Hammer | -9/Materials | Scanalyzed Flight Unit | -9/Materials | Scanalyzed Robot Schematics ------------------ None Fabricated ------------ Nothing Repaired ---------- Sml. Laser | 34% | -10/Materials VTOL Module | 52% | -10/Materials Flight Unit | 15% | -9/Materials Hover Unit | 76% | -9/Materials | Corrupted Studied --------- Flight Unit | -9/Materials | Hacked Alien Tech Used ----------------- None Achievements -------------- Close Call Crack Shot Everything Is Under Control I Have A Map? Item+ Librarian Novice Programmer One Hack Too Far Organ Harvest Part-time Mechanic Power Corrupts Risk Taker Spot Them First Storm Trooper There's More Where That Came From Challenges ------------ None Game ------ Seed PulseScrapoidExtractor Manual? 0 Play Time 01:05:55 Cumulative 2.1 hours Start 2026.02.02 @ 20:06:58 End 2026.02.02 @ 21:14:46 Sessions 1 Manual Loads 0 Difficulty Rogue Special Mode None Game No. 7 Rogue 4 Adventurer 3 Explorer 0 Win Type - Total 0 Types 0/0/0/0/0/0/0/0/0/0 Lore% 2 Gallery% 6 Achievement% 4 Wizard Run 0 Options --------- Layout 1 ASCII 0 Keyboard 0 Movement Numpad Keybinds 0 Fullscreen 2 Font 24/Proggy Map View 50x35 Zoom Use 19% Tactical HUD 1 Map Filters NONE Filters NONE Steam 1 RUN: 9c5a5c85-928d-4859-8d14-74e2c59c7bc5